fUST/lending_fUST_20250718
["ID","MTS","AMOUNT","RATE_DAILY","PERIOD"]
[372952776,1752819047012,-583.03,0.00019177,2]
[372952777,1752819047021,-460.0,0.00019177,2]
[372952778,1752819047031,-973.01,0.00019177,2]
[372952779,1752819047042,-460.0,0.00019177,2]
[372952780,1752819047051,-460.0,0.00019177,2]
[372952781,1752819047060,-460.0,0.00019177,2]
[372952782,1752819047070,-175.90197964,0.00019178,2]
[372952783,1752819047079,-707.8,0.00019178,2]
[372952784,1752819047089,-460.0,0.00019178,2]
[372952785,1752819047098,-588.27,0.00019178,2]
[372952786,1752819047108,-436.46393686,0.00019178,2]
[372952787,1752819047117,-460.0,0.00019178,2]
[372952788,1752819047126,-471.76,0.00019178,2]
[372952789,1752819047136,-460.0,0.00019178,2]
[372952790,1752819047145,-512.1,0.00019178,2]
[372952791,1752819047155,-603.41,0.00019178,2]
[372952792,1752819047166,-198.81759177,0.00019178,7]
[372952793,1752819047178,-460.0,0.00019178,2]
[372952794,1752819047188,-1486.1,0.00019178,2]
[372952795,1752819047198,-460.0,0.00019178,2]
[372952796,1752819047208,-1573.17,0.00019178,2]
[372952797,1752819047218,-2818.77,0.00019178,2]
[372952798,1752819047227,-460.0,0.00019178,2]
[372952799,1752819047237,-460.0,0.00019178,2]
[372952800,1752819047246,-1275.83,0.00019178,2]
[372952801,1752819047256,-470.71530316,0.00019178,2]
[372952802,1752819047267,-460.0,0.00019178,2]
[372952803,1752819047276,-460.0,0.00019178,2]
[372952804,1752819047286,-1114.58,0.00019178,2]
[372952805,1752819047295,-471.36,0.00019178,2]
[372952806,1752819047304,-169.987809,0.00019178,2]
[372952807,1752819047424,-666.0,0.00019178,2]
[372952808,1752819047434,-46176.86980275,0.00019329,2]
[372952809,1752819047450,-9704.20274741,0.00019329,2]
[372952810,1752819047477,-315.929,0.00019329,2]
[372952811,1752819047490,-1699.10296557,0.00019329,2]
[372952812,1752819047502,-4023.37654981,0.00019329,2]
[372952813,1752819047513,-7828.63263868,0.00019329,2]
[372952814,1752819047527,-1935.12869628,0.00019329,2]
[372952815,1752819047539,-28316.7575995,0.00019329,2]
[372952816,1752819047548,-501.57946842,0.00019373,2]
[372952817,1752819047558,-500.0,0.00019373,2]
[372952818,1752819047567,-150.0,0.00019373,2]
[372952819,1752819047577,-164.0,0.00019397,3]
[372952820,1752819047586,-240.07,0.00019436,2]
[372952821,1752819047596,-460.0,0.00019451,2]
[372952822,1752819047605,-460.0,0.00019451,2]
[372952823,1752819047615,-1011.27,0.00019451,2]
[372952824,1752819047624,-460.0,0.00019451,2]
[372952825,1752819047634,-460.0,0.00019451,2]
[372952826,1752819047644,-583.03,0.00019451,2]
[372952827,1752819047653,-460.0,0.00019451,2]
[372952828,1752819047663,-973.01,0.00019451,2]
[372952829,1752819047672,-498.62436029,0.00019451,2]
[372952830,1752819047681,-460.0,0.00019451,2]
[372952831,1752819047692,-707.8,0.00019452,2]
[372952832,1752819047702,-460.0,0.00019452,2]
[372952833,1752819047712,-588.27,0.00019452,2]
[372952834,1752819047722,-460.0,0.00019452,2]
[372952835,1752819047732,-471.76,0.00019452,2]
[372952836,1752819047741,-460.0,0.00019452,2]
[372952837,1752819047751,-512.1,0.00019452,2]
[372952838,1752819047761,-603.41,0.00019452,2]
[372952839,1752819047770,-460.0,0.00019452,2]
[372952840,1752819047780,-1486.1,0.00019452,2]
[372952841,1752819047791,-460.0,0.00019452,2]
[372952842,1752819047800,-1573.17,0.00019452,2]
[372952843,1752819047809,-2818.77,0.00019452,2]
[372952844,1752819047820,-460.0,0.00019452,2]
[372952845,1752819047829,-460.0,0.00019452,2]
[372952846,1752819047838,-1275.83,0.00019452,2]
[372952847,1752819047847,-460.0,0.00019452,2]
[372952848,1752819047856,-460.0,0.00019452,2]
[372952849,1752819047865,-1114.58,0.00019452,2]
[372952850,1752819047875,-471.36,0.00019452,2]
[372952851,1752819047884,-520.0,0.00019696,2]
[372952852,1752819047894,-2351.0,0.00019711,2]
[372952853,1752819047904,-460.0,0.00019725,2]
[372952854,1752819047913,-460.0,0.00019725,2]
[372952855,1752819047923,-1011.27,0.00019725,2]
[372952856,1752819047933,-460.0,0.00019725,2]
[372952857,1752819047945,-460.0,0.00019725,2]
[372952858,1752819047955,-583.03,0.00019725,2]
[372952859,1752819047964,-460.0,0.00019725,2]
[372952860,1752819047974,-973.01,0.00019725,2]
[372952861,1752819047984,-460.0,0.00019725,2]
[372952862,1752819047993,-707.8,0.00019726,2]
[372952863,1752819048003,-460.0,0.00019726,2]
[372952864,1752819048013,-588.27,0.00019726,2]
[372952865,1752819048023,-460.0,0.00019726,2]
[372952866,1752819048033,-471.76,0.00019726,2]
[372952867,1752819048043,-460.0,0.00019726,2]
[372952868,1752819048060,-512.1,0.00019726,2]
[372952869,1752819048081,-603.41,0.00019726,2]
[372952870,1752819048092,-460.0,0.00019726,2]
[372952871,1752819048101,-1486.1,0.00019726,2]
[372952872,1752819048112,-154.45,0.00019726,2]
[372952873,1752819048122,-1573.17,0.00019726,2]
[372952874,1752819048131,-2818.77,0.00019726,2]
[372952875,1752819048141,-460.0,0.00019726,2]
[372952876,1752819048151,-460.0,0.00019726,2]
[372952877,1752819048161,-1275.83,0.00019726,2]
[372952878,1752819048177,-460.0,0.00019726,2]
[372952879,1752819048186,-460.0,0.00019726,2]
[372952880,1752819048197,-1114.58,0.00019726,2]
[372952881,1752819048207,-471.36,0.00019726,2]
[372952882,1752819048218,-460.0,0.00019999,2]
[372952883,1752819048229,-460.0,0.00019999,2]
[372952884,1752819048249,-1011.27,0.00019999,2]
[372952885,1752819048271,-460.0,0.00019999,2]
[372952886,1752819048287,-460.0,0.00019999,2]
[372952887,1752819048296,-583.03,0.00019999,2]
[372952888,1752819048306,-460.0,0.00019999,2]
[372952889,1752819048315,-973.01,0.00019999,2]
[372952890,1752819048325,-460.0,0.00019999,2]
[372952891,1752819048335,-707.8,0.0002,2]
[372952892,1752819048345,-460.0,0.0002,2]
[372952893,1752819048354,-588.27,0.0002,2]
[372952894,1752819048363,-460.0,0.0002,2]
[372952895,1752819048373,-471.76,0.0002,2]
[372952896,1752819048382,-512.1,0.0002,2]
[372952897,1752819048391,-603.41,0.0002,2]
[372952898,1752819048400,-460.0,0.0002,2]
[372952899,1752819048409,-1486.1,0.0002,2]
[372952900,1752819048419,-1573.17,0.0002,2]
[372952901,1752819048428,-2818.77,0.0002,2]
[372952902,1752819048438,-460.0,0.0002,2]
[372952903,1752819048449,-460.0,0.0002,2]
[372952904,1752819048459,-1275.83,0.0002,2]
[372952905,1752819048469,-460.0,0.0002,2]
[372952906,1752819048479,-342.4041979,0.0002,2]
[372952907,1752819048489,-1114.58,0.0002,2]
[372952908,1752819048499,-471.36,0.0002,2]
[372952909,1752819048509,-275.546452,0.00020187,2]
[372952910,1752819048519,-643.57758501,0.00020224,2]
[372952911,1752819048529,-460.0,0.00020273,2]
[372952912,1752819048539,-707.8,0.00020273,2]
[372952913,1752819048548,-424.57,0.00020273,2]
[372952914,1752819048558,-588.27,0.00020273,2]
[372952915,1752819048567,-1011.27,0.00020273,2]
[372952916,1752819048577,-460.0,0.00020273,2]
[372952917,1752819048587,-460.0,0.00020273,2]
[372952918,1752819048596,-471.76,0.00020273,2]
[372952919,1752819048606,-460.0,0.00020273,2]
[372952920,1752819048616,-512.1,0.00020273,2]
[372952921,1752819048625,-603.41,0.00020273,2]
[372952922,1752819048635,-583.03,0.00020273,2]
[372952923,1752819048645,-460.0,0.00020273,2]
[372952924,1752819048654,-460.0,0.00020273,2]
[372952925,1752819048664,-1486.1,0.00020273,2]
[372952926,1752819048673,-1573.17,0.00020273,2]
[372952927,1752819048683,-2818.77,0.00020273,2]
[372952928,1752819048694,-973.01,0.00020273,2]
[372952929,1752819048704,-460.0,0.00020273,2]
[372952930,1752819048714,-460.0,0.00020273,2]
[372952931,1752819048725,-1275.83,0.00020273,2]
[372952932,1752819048735,-460.0,0.00020273,2]
[372952933,1752819048745,-460.0,0.00020273,2]
[372952934,1752819048755,-1114.58,0.00020273,2]
[372952935,1752819048765,-471.36,0.00020273,2]
[372952936,1752819048774,-926.23941596,0.00020519,2]
[372952937,1752819048784,-460.0,0.00020547,2]
[372952938,1752819048793,-707.8,0.00020547,2]
[372952939,1752819048803,-588.27,0.00020547,2]
[372952940,1752819048813,-1011.27,0.00020547,2]
[372952941,1752819048822,-460.0,0.00020547,2]
[372952942,1752819048832,-460.0,0.00020547,2]
[372952943,1752819048842,-471.76,0.00020547,2]
[372952944,1752819048851,-460.0,0.00020547,2]
[372952945,1752819048861,-512.1,0.00020547,2]
[372952946,1752819048870,-603.41,0.00020547,2]
[372952947,1752819048879,-583.03,0.00020547,2]
[372952948,1752819048888,-460.0,0.00020547,2]
[372952949,1752819048897,-460.0,0.00020547,2]
[372952950,1752819048906,-1486.1,0.00020547,2]
[372952951,1752819048916,-1573.17,0.00020547,2]
[372952952,1752819048924,-2818.77,0.00020547,2]
[372952953,1752819048933,-973.01,0.00020547,2]
[372952954,1752819048944,-460.0,0.00020547,2]
[372952955,1752819048954,-460.0,0.00020547,2]
[372952956,1752819048963,-1275.83,0.00020547,2]
[372952957,1752819048972,-460.0,0.00020547,2]
[372952958,1752819048981,-460.0,0.00020547,2]
[372952959,1752819048990,-1114.58,0.00020547,2]
[372952960,1752819048999,-471.36,0.00020547,2]
[372952961,1752819049008,-3219.08595977,0.00020569,2]
[372952962,1752819049018,-460.0,0.00020821,2]
[372952963,1752819049027,-707.8,0.00020821,2]
[372952964,1752819049036,-588.27,0.00020821,2]
[372952965,1752819049045,-1011.27,0.00020821,2]
[372952966,1752819049054,-460.0,0.00020821,2]
[372952967,1752819049063,-460.0,0.00020821,2]
[372952968,1752819049072,-471.76,0.00020821,2]
[372952969,1752819049081,-460.0,0.00020821,2]
[372952970,1752819049089,-512.1,0.00020821,2]
[372952971,1752819049098,-603.41,0.00020821,2]
[372952972,1752819049107,-583.03,0.00020821,2]
[372952973,1752819049117,-606.36,0.00020821,2]
[372952974,1752819049126,-460.0,0.00020821,2]
[372952975,1752819049135,-1486.1,0.00020821,2]
[372952976,1752819049145,-1573.17,0.00020821,2]
[372952977,1752819049154,-2818.77,0.00020821,2]
[372952978,1752819049164,-973.01,0.00020821,2]
[372952979,1752819049177,-460.0,0.00020821,2]
[372952980,1752819049186,-460.0,0.00020821,2]
[372952981,1752819049196,-1275.83,0.00020821,2]
[372952982,1752819049209,-402.74796504,0.00020821,2]
[372952983,1752819049219,-460.0,0.00020821,2]
[372952984,1752819049228,-1114.58,0.00020821,2]
[372952985,1752819049239,-471.36,0.00020821,2]
[372952986,1752819049248,-388.417,0.00020917,2]
[372952987,1752819049257,-179.0,0.00021041,3]
[372952988,1752819049267,-460.0,0.00021095,2]
[372952989,1752819049277,-707.8,0.00021095,2]
[372952990,1752819049286,-588.27,0.00021095,2]
[372952991,1752819049295,-1011.27,0.00021095,2]
[372952992,1752819049304,-460.0,0.00021095,2]
[372952993,1752819049313,-460.0,0.00021095,2]
[372952994,1752819049322,-471.76,0.00021095,2]
[372952995,1752819049332,-460.0,0.00021095,2]
[372952996,1752819049341,-512.1,0.00021095,2]
[372952997,1752819049350,-603.41,0.00021095,2]
[372952998,1752819049359,-583.03,0.00021095,2]
[372952999,1752819049369,-460.0,0.00021095,2]
[372953000,1752819049379,-1486.1,0.00021095,2]
[372953001,1752819049388,-1573.17,0.00021095,2]
[372953002,1752819049398,-2818.77,0.00021095,2]
[372953003,1752819049408,-460.0,0.00021095,2]
[372953004,1752819049418,-973.01,0.00021095,2]
[372953005,1752819049428,-460.0,0.00021095,2]
[372953006,1752819049438,-1275.83,0.00021095,2]
[372953007,1752819049449,-460.0,0.00021095,2]
[372953008,1752819049459,-1114.58,0.00021095,2]
[372953009,1752819049469,-471.36,0.00021095,2]
[372953010,1752819049480,-151.0,0.000211,3]
[372953011,1752819049490,-150.0,0.00021134,2]
[372953012,1752819049500,-5000.0,0.00021137,2]
[372953013,1752819049510,-460.0,0.00021369,2]
[372953014,1752819049520,-707.8,0.00021369,2]
[372953015,1752819049530,-588.27,0.00021369,2]
[372953016,1752819049539,-1011.27,0.00021369,2]
[372953017,1752819049552,-460.0,0.00021369,2]
[372953018,1752819049562,-460.0,0.00021369,2]
[372953019,1752819049571,-471.76,0.00021369,2]
[372953020,1752819049581,-460.0,0.00021369,2]
[372953021,1752819049591,-512.1,0.00021369,2]
[372953022,1752819049600,-603.41,0.00021369,2]
[372953023,1752819049610,-583.03,0.00021369,2]
[372953024,1752819049620,-460.0,0.00021369,2]
[372953025,1752819049629,-1486.1,0.00021369,2]
[372953026,1752819049639,-1573.17,0.00021369,2]
[372953027,1752819049647,-2818.77,0.00021369,2]
[372953028,1752819049656,-460.0,0.00021369,2]
[372953029,1752819049666,-973.01,0.00021369,2]
[372953030,1752819049676,-460.0,0.00021369,2]
[372953031,1752819049685,-1275.83,0.00021369,2]
[372953032,1752819049696,-460.0,0.00021369,2]
[372953033,1752819049707,-1114.58,0.00021369,2]
[372953034,1752819049715,-471.36,0.00021369,2]
[372953035,1752819049724,-643.57758501,0.0002152,2]
[372953036,1752819049733,-460.0,0.00021643,2]
[372953037,1752819049743,-707.8,0.00021643,2]
[372953038,1752819049752,-588.27,0.00021643,2]
[372953039,1752819049761,-1011.27,0.00021643,2]
[372953040,1752819049770,-460.0,0.00021643,2]
[372953041,1752819049779,-460.0,0.00021643,2]
[372953042,1752819049787,-471.76,0.00021643,2]
[372953043,1752819049797,-460.0,0.00021643,2]
[372953044,1752819049806,-512.1,0.00021643,2]
[372953045,1752819049815,-603.41,0.00021643,2]
[372953046,1752819049824,-583.03,0.00021643,2]
[372953047,1752819049833,-460.0,0.00021643,2]
[372953048,1752819049842,-1486.1,0.00021643,2]
[372953049,1752819049851,-1573.17,0.00021643,2]
[372953050,1752819049861,-2818.77,0.00021643,2]
[372953051,1752819049870,-460.0,0.00021643,2]
[372953052,1752819049880,-973.01,0.00021643,2]
[372953053,1752819049889,-460.0,0.00021643,2]
[372953054,1752819049898,-1275.83,0.00021643,2]
[372953055,1752819049907,-460.0,0.00021643,2]
[372953056,1752819049916,-1114.58,0.00021643,2]
[372953057,1752819049924,-471.36,0.00021643,2]
[372953058,1752819049933,-500.0,0.00021868,2]
[372953059,1752819049945,-460.0,0.00021917,2]
[372953060,1752819049955,-707.8,0.00021917,2]
[372953061,1752819049964,-588.27,0.00021917,2]
[372953062,1752819049973,-1011.27,0.00021917,2]
[372953063,1752819049982,-608.07,0.00021917,2]
[372953064,1752819049992,-460.0,0.00021917,2]
[372953065,1752819050000,-471.76,0.00021917,2]
[372953066,1752819050009,-460.0,0.00021917,2]
[372953067,1752819050018,-512.1,0.00021917,2]
[372953068,1752819050027,-603.41,0.00021917,2]
[372953069,1752819050036,-583.03,0.00021917,2]
[372953070,1752819050045,-460.0,0.00021917,2]
[372953071,1752819050054,-1486.1,0.00021917,2]
[372953072,1752819050063,-1573.17,0.00021917,2]
[372953073,1752819050071,-2818.77,0.00021917,2]
[372953074,1752819050180,-460.0,0.00021917,2]
[372953075,1752819050191,-973.01,0.00021917,2]
[372953076,1752819050200,-204.61,0.00021917,2]
[372953077,1752819050211,-1275.83,0.00021917,2]
[372953078,1752819050220,-460.0,0.00021917,2]
[372953079,1752819050230,-1114.58,0.00021917,2]
[372953080,1752819050239,-471.36,0.00021917,2]
[372953081,1752819050250,-150.0,0.00021918,2]
[372953082,1752819050259,-150.0,0.00021918,2]
[372953083,1752819050269,-11074.8,0.00022,7]
[372953084,1752819050279,-1357.18,0.00022,7]
[372953085,1752819050288,-476.25663856,0.00022,7]
[372953086,1752819050298,-2560.99,0.00022,7]
[372953087,1752819050307,-12610.43989422,0.00022,7]
[372953088,1752819050317,-160.0,0.00022,7]
[372953089,1752819050327,-3000.0,0.000221,2]
[372953090,1752819050337,-4743.791521,0.0002211,2]
[372953091,1752819050346,-460.0,0.00022191,2]
[372953092,1752819050356,-707.8,0.00022191,2]
[372953093,1752819050365,-588.27,0.00022191,2]
[372953094,1752819050375,-1011.27,0.00022191,2]
[372953095,1752819050384,-460.0,0.00022191,2]
[372953096,1752819050394,-471.76,0.00022191,2]
[372953097,1752819050403,-460.0,0.00022191,2]
[372953098,1752819050413,-512.1,0.00022191,2]
[372953099,1752819050422,-603.41,0.00022191,2]
[372953100,1752819050431,-583.03,0.00022191,2]
[372953101,1752819050442,-460.0,0.00022191,2]
[372953102,1752819050451,-1486.1,0.00022191,2]
[372953103,1752819050461,-1573.17,0.00022191,2]
[372953104,1752819050470,-2818.77,0.00022191,2]
[372953105,1752819050480,-235.81954728,0.00022191,2]
[372953106,1752819050489,-973.01,0.00022191,2]
[372953107,1752819050499,-1275.83,0.00022191,2]
[372953108,1752819050509,-380.55555011,0.00022191,2]
[372953109,1752819050519,-1114.58,0.00022191,2]
[372953110,1752819050529,-471.36,0.00022191,2]
[372953111,1752819050539,-408.691,0.00022294,2]
[372953112,1752819050548,-647.0,0.00022348,2]
[372953113,1752819050557,-2156.0,0.00022348,2]
[372953114,1752819050566,-968.0,0.00022348,2]
[372953115,1752819050575,-983.19,0.000224,2]
[372953116,1752819050585,-460.0,0.00022465,2]
[372953117,1752819050594,-707.8,0.00022465,2]
[372953118,1752819050604,-588.27,0.00022465,2]
[372953119,1752819050613,-1011.27,0.00022465,2]
[372953120,1752819050622,-460.0,0.00022465,2]
[372953121,1752819050631,-471.76,0.00022465,2]
[372953122,1752819050640,-460.0,0.00022465,2]
[372953123,1752819050650,-512.1,0.00022465,2]
[372953124,1752819050659,-603.41,0.00022465,2]
[372953125,1752819050668,-583.03,0.00022465,2]
[372953126,1752819050677,-460.0,0.00022465,2]
[372953127,1752819050686,-1486.1,0.00022465,2]
[372953128,1752819050696,-1573.17,0.00022465,2]
[372953129,1752819050705,-2818.77,0.00022465,2]
[372953130,1752819050714,-973.01,0.00022465,2]
[372953131,1752819050723,-1275.83,0.00022465,2]
[372953132,1752819050732,-1114.58,0.00022465,2]
[372953133,1752819050741,-471.36,0.00022465,2]
[372953134,1752819050751,-300.41183888,0.00022466,2]
[372953135,1752819050760,-200.78142917,0.00022466,2]
[372953136,1752819050769,-151.0,0.00022596,2]
[372953137,1752819050777,-151.0,0.00022596,2]
[372953138,1752819050784,-207.4,0.00022596,2]
[372953139,1752819050791,-184.17851102,0.00022596,2]
[372953140,1752819050797,-3801.642,0.00022596,2]
[372953141,1752819050804,-151.0,0.00022596,2]
[372953142,1752819050810,-151.0,0.00022596,2]
[372953143,1752819050818,-151.0,0.00022596,2]
[372953144,1752819050825,-151.0,0.00022596,2]
[372953145,1752819050832,-151.0,0.00022596,2]
[372953146,1752819050840,-151.0,0.00022596,2]
[372953147,1752819050847,-151.0,0.00022596,2]
[372953148,1752819050853,-151.0,0.00022596,2]
[372953149,1752819050860,-151.0,0.00022596,2]
[372953150,1752819050867,-151.0,0.00022596,2]
[372953151,1752819050875,-151.0,0.00022596,2]
[372953152,1752819050884,-151.0,0.00022596,2]
[372953153,1752819050893,-151.0,0.00022596,2]
[372953154,1752819050902,-151.0,0.00022596,2]
[372953155,1752819050911,-151.0,0.00022596,2]
[372953156,1752819050919,-151.0,0.00022596,2]
[372953157,1752819050928,-151.0,0.00022596,2]
[372953158,1752819050937,-151.0,0.00022596,2]
[372953159,1752819050948,-151.0,0.00022596,2]
[372953160,1752819050958,-151.0,0.00022596,2]
[372953161,1752819050968,-25000.0,0.00022596,2]
[372953162,1752819050977,-24359.37799871,0.00022596,2]
[372953163,1752819050987,-434.76012489,0.000226,2]
[372953164,1752819050997,-926.23941596,0.0002261,2]
[372953165,1752819051006,-1803.5779428,0.00022651,2]
[372953166,1752819051016,-12500.0,0.0002273,7]
[372953167,1752819051026,-460.0,0.00022739,2]
[372953168,1752819051035,-12500.0,0.00022739,7]
[372953169,1752819051045,-707.88839026,0.00022739,2]
[372953170,1752819051055,-1873.22599105,0.00022739,7]
[372953171,1752819051064,-588.37,0.00022739,2]
[372953172,1752819051074,-1011.27,0.00022739,2]
[372953173,1752819051083,-206.43818443,0.00022739,2]
[372953174,1752819051093,-471.90690362,0.00022739,2]
[372953175,1752819051103,-460.0,0.00022739,2]
[372953176,1752819051113,-512.27483306,0.00022739,2]
[372953177,1752819051123,-603.55,0.00022739,2]
[372953178,1752819051132,-583.03,0.00022739,2]
[372953179,1752819051143,-460.0,0.00022739,2]
[372953180,1752819051152,-1486.13267364,0.00022739,2]
[372953181,1752819051163,-1573.2902509,0.00022739,2]
[372953182,1752819051176,-2818.90166782,0.00022739,2]
[372953183,1752819051185,-973.01,0.00022739,2]
[372953184,1752819051197,-1275.96595428,0.00022739,2]
[372953185,1752819051207,-1114.69311843,0.00022739,2]
[372953186,1752819051216,-471.55,0.00022739,2]
[372953187,1752819051225,-160.0,0.0002274,7]
[372953188,1752819051236,-643.57758501,0.00022816,2]
[372953189,1752819051246,-150.0,0.00022932,2]
[372953190,1752819051255,-500.0,0.00022964,2]
[372953191,1752819051265,-460.0,0.00023013,2]
[372953192,1752819051274,-1011.27,0.00023013,2]
[372953193,1752819051284,-460.0,0.00023013,2]
[372953194,1752819051294,-583.03,0.00023013,2]
[372953195,1752819051304,-460.0,0.00023013,2]
[372953196,1752819051313,-973.01,0.00023013,2]
[372953197,1752819051323,-25000.0,0.00023144,2]
[372953198,1752819051333,-416.31312482,0.00023215,4]
[372953199,1752819051343,-181.0,0.00023233,9]
[372953200,1752819051353,-460.0,0.00023287,2]
[372953201,1752819051368,-1011.27,0.00023287,2]
[372953202,1752819051383,-543.86403757,0.00023287,2]
[372953203,1752819051396,-583.03,0.00023287,2]
[372953204,1752819051409,-460.0,0.00023287,2]
[372953205,1752819051420,-973.01,0.00023287,2]
[372953206,1752819051433,-151.0,0.000233,7]
[372953207,1752819051447,-180.0,0.00023362,2]
[372953208,1752819051459,-2560.99,0.000234,7]
[372953209,1752819051472,-168.0,0.00023479,2]
[372953210,1752819051484,-151.0,0.000235,7]
[372953211,1752819051496,-163.98184823,0.00023507,2]
[372953212,1752819051508,-180.0,0.00023513,2]
[372953213,1752819051522,-2711.95877934,0.00023522,2]
[372953214,1752819051535,-460.0,0.00023561,2]
[372953215,1752819051546,-1011.27,0.00023561,2]
[372953216,1752819051559,-583.03,0.00023561,2]
[372953217,1752819051571,-460.0,0.00023561,2]
[372953218,1752819051583,-973.01,0.00023561,2]
[372953219,1752819051596,-1357.18,0.000236,7]
[372953220,1752819051609,-180.0,0.00023616,2]
[372953221,1752819051621,-180.0,0.00023645,2]
[372953222,1752819051633,-202.15,0.00023669,2]
[372953223,1752819051643,-25000.0,0.00023692,2]
[372953224,1752819051656,-151.0,0.00023693,7]
[372953225,1752819051667,-151.0,0.00023693,7]
[372953226,1752819051683,-202.15,0.000237,2]
[372953227,1752819051697,-240.07,0.00023739,2]
[372953228,1752819051711,-163.98184823,0.00023808,2]
[372953229,1752819051724,-258.42239098,0.00023835,2]
[372953230,1752819051737,-1011.27,0.00023835,2]
[372953231,1752819051751,-583.03,0.00023835,2]
[372953232,1752819051764,-262.62602753,0.00023835,2]
[372953233,1752819051775,-973.01,0.00023835,2]
[372953234,1752819051786,-151.0,0.000239,5]
[372953235,1752819051797,-4917.99197454,0.000239,2]
[372953236,1752819051808,-961.60473553,0.00023904,2]
[372953237,1752819051821,-215.0738,0.00023965,2]
[372953238,1752819051835,-180.0,0.00023966,2]
[372953239,1752819051847,-11074.8,0.00024,7]
[372953240,1752819051858,-160.0,0.00024,7]
[372953241,1752819051869,-1599.21,0.00024,2]
[372953242,1752819051880,-215.63268315,0.00024,7]
[372953243,1752819051893,-525.75194068,0.00024,7]
[372953244,1752819051904,-230.89969799,0.00024,7]
[372953245,1752819051915,-160.0,0.00024,7]
[372953246,1752819051925,-839.30593155,0.00024,7]
[372953247,1752819051936,-155.0,0.00024,7]
[372953248,1752819051949,-180.0,0.00024109,2]
[372953249,1752819051960,-1011.27,0.00024109,2]
[372953250,1752819051972,-583.03,0.00024109,2]
[372953251,1752819051983,-973.01,0.00024109,2]
[372953252,1752819051993,-643.57758501,0.00024111,2]
[372953253,1752819052005,-168.0,0.00024152,2]
[372953254,1752819052016,-180.0,0.000242,2]
[372953255,1752819052027,-168.0,0.00024366,2]
[372953256,1752819052038,-1011.27,0.00024383,2]
[372953257,1752819052049,-583.03,0.00024383,2]
[372953258,1752819052060,-973.01,0.00024383,2]
[372953259,1752819052072,-151.0,0.000244,10]
[372953260,1752819052083,-551.959319,0.00024401,8]
[372953261,1752819052094,-180.0,0.0002447,2]
[372953262,1752819052105,-651.467,0.00024641,2]
[372953263,1752819052117,-2200.0,0.00024641,2]
[372953264,1752819052128,-1011.27,0.00024657,2]
[372953265,1752819052139,-583.03,0.00024657,2]
[372953266,1752819052151,-973.01,0.00024657,2]
[372953267,1752819052162,-151.0,0.00024658,2]
[372953268,1752819052177,-601.0,0.00024658,2]
[372953269,1752819052188,-151.0,0.00024658,2]
[372953270,1752819052200,-151.0,0.00024658,2]
[372953271,1752819052211,-151.0,0.00024658,2]
[372953272,1752819052223,-4619.31525862,0.00024658,2]
[372953273,1752819052234,-500.0,0.00024658,2]
[372953274,1752819052247,-276.60917093,0.00024658,2]
[372953275,1752819052259,-151.0,0.00024658,2]